[Event "Live Chess"]
[Site "Chess.com"]
[Date "2024.06.02"]
[Round "-"]
[White "TheSmoulderingMaster"]
[Black "NottheBishopSacrifice"]
[Result "0-1"]
[WhiteElo "1785"]
[BlackElo "2355"]
[TimeControl "300"]
[EndTime "8:40:09 PDT"]
[Termination "NottheBishopSacrifice won by resignation"]

1. e4 {[%clk 0:04:57.1]} 1... c6 {[%clk 0:04:58.9]} 2. d4 {[%clk 0:04:51.2]}
2... d5 {[%clk 0:04:58.4]} 3. Nc3 {[%clk 0:04:50]} 3... dxe4 {[%clk 0:04:57.5]}
4. Nxe4 {[%clk 0:04:49.1]} 4... Nf6 {[%clk 0:04:56.7]} 5. Nxf6+ {[%clk
0:04:47.6]} 5... exf6 {[%clk 0:04:56.4]} 6. Nf3 {[%clk 0:04:47.2]} 6... Bd6
{[%clk 0:04:55.5]} 7. Bc4 {[%clk 0:04:46]} 7... O-O {[%clk 0:04:54.4]} 8. O-O
{[%clk 0:04:45.2]} 8... Bg4 {[%clk 0:04:53.1]} 9. h3 {[%clk 0:04:43.8]} 9... Bh5
{[%clk 0:04:52.3]} 10. Be3 {[%clk 0:04:31.4]} 10... Nd7 {[%clk 0:04:49.7]} 11.
Be2 {[%clk 0:04:30]} 11... Qc7 {[%clk 0:04:48.2]} 12. Qd2 {[%clk 0:04:27]} 12...
Rfe8 {[%clk 0:04:47.1]} 13. c4 {[%clk 0:04:25.1]} 13... Rad8 {[%clk 0:04:43.4]}
14. c5 {[%clk 0:04:24.1]} 14... Bf8 {[%clk 0:04:41.9]} 15. b4 {[%clk 0:04:20.9]}
15... f5 {[%clk 0:04:37.7]} 16. a3 {[%clk 0:04:17]} 16... Nf6 {[%clk 0:04:36.5]}
17. Bg5 {[%clk 0:04:13.3]} 17... Ne4 {[%clk 0:04:34.1]} 18. Qf4 {[%clk 0:04:06]}
18... Qxf4 {[%clk 0:04:29]} 19. Bxf4 {[%clk 0:04:04.8]} 19... Bxf3 {[%clk
0:04:28.4]} 20. Bxf3 {[%clk 0:04:03.6]} 20... Rxd4 {[%clk 0:04:28]} 21. Be3
{[%clk 0:04:00.5]} 21... Rd5 {[%clk 0:04:26.6]} 22. Rad1 {[%clk 0:03:55.3]}
22... Rxd1 {[%clk 0:04:23.4]} 23. Rxd1 {[%clk 0:03:53.7]} 23... g6 {[%clk
0:04:22.4]} 24. Rd7 {[%clk 0:03:51.7]} 24... Re7 {[%clk 0:04:21]} 25. Rd8 {[%clk
0:03:48.7]} 25... Kg7 {[%clk 0:04:19.6]} 26. Bf4 {[%clk 0:03:44.6]} 26... Nf6
{[%clk 0:04:16]} 27. Bd6 {[%clk 0:03:39.1]} 27... Re1+ {[%clk 0:04:14.8]} 28.
Kh2 {[%clk 0:03:37.3]} 28... Bxd6+ {[%clk 0:04:14.4]} 29. Rxd6 {[%clk
0:03:35.5]} 29... Ra1 {[%clk 0:04:12.2]} 30. Rd3 {[%clk 0:03:33.3]} 30... Ne4
{[%clk 0:04:11.1]} 31. Bxe4 {[%clk 0:03:31.3]} 31... fxe4 {[%clk 0:04:11]} 32.
Re3 {[%clk 0:03:30.2]} 32... f5 {[%clk 0:04:09.4]} 33. g3 {[%clk 0:03:28.4]}
33... Kf6 {[%clk 0:04:07.7]} 34. h4 {[%clk 0:03:26.9]} 34... Ke5 {[%clk
0:04:06.9]} 35. f3 {[%clk 0:03:20.4]} 35... Ra2+ {[%clk 0:04:04.2]} 36. Kh3
{[%clk 0:03:19]} 36... h6 {[%clk 0:04:03.5]} 37. f4+ {[%clk 0:03:15.9]} 37...
Ke6 {[%clk 0:04:02.1]} 38. h5 {[%clk 0:03:11.1]} 38... gxh5 {[%clk 0:04:00.3]}
39. Re1 {[%clk 0:03:04]} 39... Rd2 {[%clk 0:03:56.6]} 40. Rh1 {[%clk 0:02:54.8]}
40... e3 {[%clk 0:03:53]} 41. Kh4 {[%clk 0:02:54]} 41... e2 {[%clk 0:03:51.5]}
42. Re1 {[%clk 0:02:49.8]} 42... Kd5 {[%clk 0:03:51]} 43. Kxh5 {[%clk
0:02:48.6]} 43... Ke4 {[%clk 0:03:50.6]} 44. Kxh6 {[%clk 0:02:46.3]} 44... Ke3
{[%clk 0:03:49.8]} 45. Kg5 {[%clk 0:02:44.1]} 45... Rd5 {[%clk 0:03:48.1]} 46.
g4 {[%clk 0:02:39]} 46... fxg4+ {[%clk 0:03:47.2]} 47. Kxg4 {[%clk 0:02:37.8]}
47... Kf2 {[%clk 0:03:46.8]} 48. Rh1 {[%clk 0:02:34.1]} 48... e1=Q {[%clk
0:03:44.6]} 49. Rxe1 {[%clk 0:02:32.9]} 49... Kxe1 {[%clk 0:03:44.5]} 50. f5
{[%clk 0:02:31.1]} 50... Kd2 {[%clk 0:03:44.1]} 51. Kg5 {[%clk 0:02:30.5]} 51...
Kc3 {[%clk 0:03:42.9]} 52. Kg6 {[%clk 0:02:29.7]} 52... Kb3 {[%clk 0:03:41.4]}
0-1

[Event "Live Chess"]
[Site "Chess.com"]
[Date "2024.06.02"]
[Round "-"]
[White "DylanMeyer1"]
[Black "LaupMiths"]
[Result "0-1"]
[WhiteElo "1696"]
[BlackElo "1811"]
[TimeControl "300"]
[EndTime "8:40:25 PDT"]
[Termination "LaupMiths won on time"]

1. c4 {[%clk 0:04:59.2]} 1... Nf6 {[%clk 0:04:57.2]} 2. Nc3 {[%clk 0:04:58.7]}
2... g6 {[%clk 0:04:56.8]} 3. g3 {[%clk 0:04:58]} 3... Bg7 {[%clk 0:04:55.6]} 4.
Bg2 {[%clk 0:04:57.7]} 4... O-O {[%clk 0:04:54.6]} 5. e3 {[%clk 0:04:57.4]} 5...
d6 {[%clk 0:04:54]} 6. Nge2 {[%clk 0:04:57.1]} 6... e5 {[%clk 0:04:52.5]} 7. O-O
{[%clk 0:04:56.4]} 7... Nc6 {[%clk 0:04:51.5]} 8. b3 {[%clk 0:04:56]} 8... Bd7
{[%clk 0:04:49.5]} 9. Bb2 {[%clk 0:04:55.6]} 9... Rb8 {[%clk 0:04:48.4]} 10. d4
{[%clk 0:04:55.2]} 10... a6 {[%clk 0:04:46]} 11. Qd2 {[%clk 0:04:54.7]} 11...
Qe7 {[%clk 0:04:41.4]} 12. Rad1 {[%clk 0:04:52.4]} 12... b5 {[%clk 0:04:25.1]}
13. cxb5 {[%clk 0:04:30]} 13... axb5 {[%clk 0:04:25]} 14. a3 {[%clk 0:04:27.8]}
14... b4 {[%clk 0:04:21.1]} 15. axb4 {[%clk 0:04:26.5]} 15... Nxb4 {[%clk
0:04:16.8]} 16. Ra1 {[%clk 0:04:24.1]} 16... Bf5 {[%clk 0:04:13.1]} 17. e4
{[%clk 0:04:21.5]} 17... exd4 {[%clk 0:04:08.2]} 18. exf5 {[%clk 0:04:11.1]}
18... dxc3 {[%clk 0:04:06.2]} 19. Bxc3 {[%clk 0:04:03.5]} 19... c5 {[%clk
0:04:03.1]} 20. fxg6 {[%clk 0:04:00.1]} 20... hxg6 {[%clk 0:04:03]} 21. Nf4
{[%clk 0:03:47.1]} 21... Rfd8 {[%clk 0:03:31.4]} 22. Rfe1 {[%clk 0:03:19.6]}
22... Qc7 {[%clk 0:03:27.8]} 23. Qb2 {[%clk 0:03:12.6]} 23... Nh5 {[%clk
0:03:12.6]} 24. Nxh5 {[%clk 0:03:03.1]} 24... Bxc3 {[%clk 0:03:10.8]} 25. Qxc3
{[%clk 0:02:59.7]} 25... gxh5 {[%clk 0:03:10.3]} 26. Qf6 {[%clk 0:02:40.7]}
26... Re8 {[%clk 0:02:55.8]} 27. Qg5+ {[%clk 0:02:28.8]} 27... Kf8 {[%clk
0:02:51.3]} 28. Qh6+ {[%clk 0:02:17.4]} 28... Kg8 {[%clk 0:02:49.4]} 29. Be4
{[%clk 0:02:11.6]} 29... f6 {[%clk 0:02:35.2]} 30. Qxh5 {[%clk 0:01:21.1]} 30...
Re5 {[%clk 0:02:18]} 31. Qf3 {[%clk 0:01:06.6]} 31... Qe7 {[%clk 0:02:05.1]} 32.
Qg4+ {[%clk 0:00:17.3]} 32... Kf8 {[%clk 0:02:00]} 33. f3 {[%clk 0:00:11.2]}
33... Nc2 {[%clk 0:01:52]} 34. Bxc2 {[%clk 0:00:07.8]} 34... Rxe1+ {[%clk
0:01:50.2]} 35. Rxe1 {[%clk 0:00:07.7]} 35... Qxe1+ {[%clk 0:01:48.5]} 36. Kg2
{[%clk 0:00:07.6]} 36... Qe2+ {[%clk 0:01:43]} 37. Kh3 {[%clk 0:00:07.5]} 37...
Qxc2 {[%clk 0:01:41.8]} 38. Qd7 {[%clk 0:00:06.9]} 38... Qd3 {[%clk 0:01:20.4]}
39. Qc6 {[%clk 0:00:05.8]} 39... Re8 {[%clk 0:01:16]} 40. b4 {[%clk 0:00:04.2]}
40... cxb4 {[%clk 0:01:14.1]} 41. Qb6 {[%clk 0:00:02.2]} 41... b3 {[%clk
0:01:11.5]} 42. Qxd6+ {[%clk 0:00:00.5]} 42... Qxd6 {[%clk 0:01:09.7]} 0-1

[Event "Live Chess"]
[Site "Chess.com"]
[Date "2024.06.02"]
[Round "-"]
[White "bonantagulo"]
[Black "OliWally08"]
[Result "1-0"]
[WhiteElo "2233"]
[BlackElo "1287"]
[TimeControl "300"]
[EndTime "8:40:33 PDT"]
[Termination "bonantagulo won by resignation"]

1. d4 {[%clk 0:04:51.8]} 1... Nf6 {[%clk 0:04:58.5]} 2. c4 {[%clk 0:04:50.2]}
2... e6 {[%clk 0:04:57.3]} 3. Nf3 {[%clk 0:04:49.6]} 3... b6 {[%clk 0:04:54.5]}
4. a3 {[%clk 0:04:47.6]} 4... Bb7 {[%clk 0:04:53.3]} 5. Nc3 {[%clk 0:04:44.9]}
5... Be7 {[%clk 0:04:49.2]} 6. d5 {[%clk 0:04:32]} 6... O-O {[%clk 0:04:37.8]}
7. e4 {[%clk 0:04:31]} 7... c5 {[%clk 0:04:33.5]} 8. e5 {[%clk 0:04:26.7]} 8...
Ne8 {[%clk 0:04:27.5]} 9. d6 {[%clk 0:04:24.2]} 9... Bh4 {[%clk 0:04:23.7]} 10.
g3 {[%clk 0:04:22.1]} 10... Bxf3 {[%clk 0:04:17.7]} 11. Qxf3 {[%clk 0:04:20.6]}
11... Nc6 {[%clk 0:04:02.2]} 12. gxh4 {[%clk 0:04:17.2]} 12... Nxe5 {[%clk
0:04:01.3]} 13. Qg3 {[%clk 0:04:07.9]} 13... Nc6 {[%clk 0:03:57]} 14. Rg1 {[%clk
0:03:58.8]} 14... Qb8 {[%clk 0:03:51.7]} 15. Bh6 {[%clk 0:03:52.5]} 15... g6
{[%clk 0:03:37.5]} 16. Ne4 {[%clk 0:03:41.7]} 16... Ng7 {[%clk 0:03:32.7]} 17.
Nf6+ {[%clk 0:03:33.9]} 17... Kh8 {[%clk 0:03:31.7]} 18. Nxd7 {[%clk 0:03:14.4]}
18... Qb7 {[%clk 0:03:27.9]} 19. Nxf8 {[%clk 0:03:06.7]} 19... Rxf8 {[%clk
0:03:27.8]} 20. Bg2 {[%clk 0:02:58.6]} 20... Qd7 {[%clk 0:03:24.8]} 21. Bxc6
{[%clk 0:02:41.4]} 21... Qxc6 {[%clk 0:03:24.7]} 22. O-O-O {[%clk 0:02:38.2]}
22... Rd8 {[%clk 0:03:20.2]} 23. Qe5 {[%clk 0:02:23.4]} 23... Rg8 {[%clk
0:03:10.2]} 24. d7 {[%clk 0:02:19.7]} 24... f6 {[%clk 0:02:57.7]} 25. Qxf6
{[%clk 0:02:15.1]} 25... Qc7 {[%clk 0:02:54.7]} 26. d8=Q {[%clk 0:02:06]} 26...
Rxd8 {[%clk 0:02:48.5]} 27. Rxd8+ {[%clk 0:02:02.1]} 1-0

[Event "Live Chess"]
[Site "Chess.com"]
[Date "2024.06.02"]
[Round "-"]
[White "ZatixMajor"]
[Black "JohanKjeldahl"]
[Result "0-1"]
[WhiteElo "2044"]
[BlackElo "1810"]
[TimeControl "300"]
[EndTime "8:40:43 PDT"]
[Termination "JohanKjeldahl won by resignation"]

1. c4 {[%clk 0:04:59]} 1... e5 {[%clk 0:04:56.8]} 2. g3 {[%clk 0:04:58.2]} 2...
Nf6 {[%clk 0:04:54.8]} 3. Bg2 {[%clk 0:04:57.7]} 3... Nc6 {[%clk 0:04:53.9]} 4.
Nc3 {[%clk 0:04:57]} 4... d6 {[%clk 0:04:53.1]} 5. Nf3 {[%clk 0:04:53.7]} 5...
g6 {[%clk 0:04:50.1]} 6. d4 {[%clk 0:04:45.4]} 6... exd4 {[%clk 0:04:47.5]} 7.
Nd5 {[%clk 0:04:44.4]} 7... Bg7 {[%clk 0:04:45.7]} 8. Bg5 {[%clk 0:04:43.1]}
8... Be6 {[%clk 0:04:39.8]} 9. Nxd4 {[%clk 0:04:41.4]} 9... Nxd4 {[%clk
0:04:34.6]} 10. Qxd4 {[%clk 0:04:38.6]} 10... Bxd5 {[%clk 0:04:33.7]} 11. cxd5
{[%clk 0:04:35.9]} 11... h6 {[%clk 0:04:30.3]} 12. Qa4+ {[%clk 0:04:24.9]} 12...
Qd7 {[%clk 0:04:27]} 13. Qxd7+ {[%clk 0:04:19.4]} 13... Kxd7 {[%clk 0:04:25.2]}
14. Bd2 {[%clk 0:04:16.4]} 14... Rhe8 {[%clk 0:04:21.4]} 15. e3 {[%clk
0:04:09.6]} 15... Ne4 {[%clk 0:04:20.2]} 16. Bxe4 {[%clk 0:04:03.9]} 16... Rxe4
{[%clk 0:04:18.9]} 17. O-O {[%clk 0:03:58.9]} 17... Rae8 {[%clk 0:04:14]} 18.
Rac1 {[%clk 0:03:50.1]} 18... Bxb2 {[%clk 0:04:07]} 19. Rb1 {[%clk 0:03:48.7]}
19... Ba3 {[%clk 0:04:02.9]} 20. Rxb7 {[%clk 0:03:47.4]} 20... Bc5 {[%clk
0:04:01.4]} 21. Ba5 {[%clk 0:03:43.9]} 21... Bb6 {[%clk 0:04:00]} 22. Bxb6
{[%clk 0:03:42.1]} 22... axb6 {[%clk 0:03:58.8]} 23. Rc1 {[%clk 0:03:40.8]}
23... Rc8 {[%clk 0:03:56.1]} 24. Rc6 {[%clk 0:03:37.4]} 24... Kd8 {[%clk
0:03:49.9]} 25. Kg2 {[%clk 0:03:32]} 25... Ra4 {[%clk 0:03:48]} 26. Rc2 {[%clk
0:03:29.6]} 26... f5 {[%clk 0:03:43.2]} 27. Kf3 {[%clk 0:03:21.8]} 27... Ra5
{[%clk 0:03:38.3]} 28. e4 {[%clk 0:03:19]} 28... fxe4+ {[%clk 0:03:34]} 29. Kxe4
{[%clk 0:03:18.9]} 29... Kd7 {[%clk 0:03:32.1]} 30. f4 {[%clk 0:03:04.1]} 30...
Re8+ {[%clk 0:03:28.8]} 31. Kf3 {[%clk 0:03:02.3]} 31... Rc5 {[%clk 0:03:21.5]}
32. Rd2 {[%clk 0:03:00.5]} 32... h5 {[%clk 0:03:16.5]} 33. Kg2 {[%clk
0:02:51.9]} 33... Re1 {[%clk 0:03:10.8]} 34. Kh3 {[%clk 0:02:43.7]} 34... Ra5
{[%clk 0:02:50.5]} 35. Kh4 {[%clk 0:02:38.1]} 35... Kc8 {[%clk 0:02:36.2]} 36.
Rxc7+ {[%clk 0:02:29.8]} 36... Kxc7 {[%clk 0:02:35]} 37. Kg5 {[%clk 0:02:29.4]}
37... Ra1 {[%clk 0:02:21.3]} 38. Re2 {[%clk 0:02:22.5]} 38... Rxd5+ {[%clk
0:02:18]} 39. Kxg6 {[%clk 0:02:20.8]} 39... h4 {[%clk 0:02:15.2]} 40. gxh4
{[%clk 0:02:17.2]} 40... Rg1+ {[%clk 0:02:12.4]} 41. Kf6 {[%clk 0:02:11.6]}
41... Rg4 {[%clk 0:02:11]} 42. f5 {[%clk 0:02:05.8]} 42... Rf4 {[%clk
0:02:07.5]} 43. Rc2+ {[%clk 0:01:57.8]} 43... Kd7 {[%clk 0:02:05.5]} 44. Rg2
{[%clk 0:01:56.6]} 44... Rdxf5+ {[%clk 0:01:53.1]} 45. Kg6 {[%clk 0:01:55.1]}
45... Rf6+ {[%clk 0:01:50.5]} 46. Kg5 {[%clk 0:01:54.1]} 46... R4f5+ {[%clk
0:01:49.5]} 47. Kg4 {[%clk 0:01:53.4]} 47... Rf1 {[%clk 0:01:43]} 48. h5 {[%clk
0:01:50.8]} 48... Rf8 {[%clk 0:01:40.6]} 49. h6 {[%clk 0:01:39.3]} 49... Rg8+
{[%clk 0:01:38.3]} 0-1

[Event "Live Chess"]
[Site "Chess.com"]
[Date "2024.06.02"]
[Round "-"]
[White "KyryloPoluliakh"]
[Black "V1nas"]
[Result "1-0"]
[WhiteElo "1531"]
[BlackElo "1317"]
[TimeControl "300"]
[EndTime "8:41:04 PDT"]
[Termination "KyryloPoluliakh won by resignation"]

1. c4 {[%clk 0:04:55.3]} 1... e6 {[%clk 0:04:56.7]} 2. Nf3 {[%clk 0:04:48.6]}
2... d5 {[%clk 0:04:54.7]} 3. cxd5 {[%clk 0:04:45.3]} 3... exd5 {[%clk
0:04:54.6]} 4. g3 {[%clk 0:04:42]} 4... Nf6 {[%clk 0:04:53.2]} 5. d4 {[%clk
0:04:39.2]} 5... c6 {[%clk 0:04:52.3]} 6. Bg2 {[%clk 0:04:36.2]} 6... Bg4 {[%clk
0:04:50.1]} 7. Nc3 {[%clk 0:04:34.6]} 7... Bb4 {[%clk 0:04:48.5]} 8. O-O {[%clk
0:04:32.5]} 8... O-O {[%clk 0:04:41.4]} 9. a3 {[%clk 0:04:28.2]} 9... Bd6 {[%clk
0:04:37.9]} 10. b4 {[%clk 0:04:25.6]} 10... a5 {[%clk 0:04:36.2]} 11. b5 {[%clk
0:04:21.8]} 11... Re8 {[%clk 0:04:28]} 12. bxc6 {[%clk 0:04:13.3]} 12... bxc6
{[%clk 0:04:24.1]} 13. e3 {[%clk 0:04:11.3]} 13... Ne4 {[%clk 0:04:11.9]} 14.
Nxe4 {[%clk 0:04:06.7]} 14... dxe4 {[%clk 0:04:11.8]} 15. Qc2 {[%clk 0:03:54.2]}
15... exf3 {[%clk 0:04:07.9]} 16. Bh1 {[%clk 0:03:53.4]} 16... h5 {[%clk
0:03:48]} 17. Re1 {[%clk 0:03:36.8]} 17... h4 {[%clk 0:03:45.6]} 18. h3 {[%clk
0:03:34.6]} 18... Bxh3 {[%clk 0:03:40.4]} 19. Bxf3 {[%clk 0:03:29.6]} 19... hxg3
{[%clk 0:03:39.5]} 20. Bxc6 {[%clk 0:03:23.7]} 20... gxf2+ {[%clk 0:03:33.6]}
21. Kxf2 {[%clk 0:03:20.6]} 21... Nxc6 {[%clk 0:03:28.2]} 22. Qxc6 {[%clk
0:03:13.8]} 22... Qf6+ {[%clk 0:03:26.8]} 23. Ke2 {[%clk 0:03:08.1]} 23... Rac8
{[%clk 0:03:12.7]} 24. Qh1 {[%clk 0:02:59.6]} 24... Rc2+ {[%clk 0:02:56.2]} 25.
Kd1 {[%clk 0:02:49.6]} 25... Qf5 {[%clk 0:02:42.6]} 26. Qxh3 {[%clk 0:02:34.9]}
26... Qxh3 {[%clk 0:02:30.4]} 27. Kxc2 {[%clk 0:02:31.8]} 27... Rc8+ {[%clk
0:02:29.6]} 28. Kd3 {[%clk 0:02:23.9]} 28... Qg2 {[%clk 0:02:20]} 29. Bd2 {[%clk
0:02:20.4]} 29... a4 {[%clk 0:02:13.8]} 30. Rg1 {[%clk 0:02:15.4]} 30... Qc6
{[%clk 0:02:09.8]} 31. Rac1 {[%clk 0:02:09.9]} 31... Qa6+ {[%clk 0:02:07.5]} 32.
Ke4 {[%clk 0:02:07.1]} 32... Rxc1 {[%clk 0:02:04]} 33. Rxc1 {[%clk 0:01:58.2]}
33... Qa5 {[%clk 0:02:02.1]} 34. Bxa5 {[%clk 0:01:54.4]} 1-0

[Event "Live Chess"]
[Site "Chess.com"]
[Date "2024.06.02"]
[Round "-"]
[White "MagnersCarlsberg2870"]
[Black "friarnator"]
[Result "0-1"]
[WhiteElo "1753"]
[BlackElo "2204"]
[TimeControl "300"]
[EndTime "8:41:04 PDT"]
[Termination "friarnator won by resignation"]

1. d4 {[%clk 0:04:57.6]} 1... Nf6 {[%clk 0:04:56.9]} 2. Nf3 {[%clk 0:04:56.4]}
2... b6 {[%clk 0:04:56.1]} 3. e3 {[%clk 0:04:54.7]} 3... Bb7 {[%clk 0:04:55.6]}
4. Bd3 {[%clk 0:04:54]} 4... e6 {[%clk 0:04:55.3]} 5. Nbd2 {[%clk 0:04:53]} 5...
Be7 {[%clk 0:04:55]} 6. Qe2 {[%clk 0:04:52.2]} 6... O-O {[%clk 0:04:54.8]} 7. c3
{[%clk 0:04:51.3]} 7... d5 {[%clk 0:04:54.3]} 8. O-O {[%clk 0:04:49.6]} 8... h6
{[%clk 0:04:53.6]} 9. e4 {[%clk 0:04:48.6]} 9... dxe4 {[%clk 0:04:51.5]} 10.
Nxe4 {[%clk 0:04:47.2]} 10... Nbd7 {[%clk 0:04:50.5]} 11. Nxf6+ {[%clk 0:04:45]}
11... Nxf6 {[%clk 0:04:50.4]} 12. Re1 {[%clk 0:04:42.3]} 12... c5 {[%clk
0:04:49.7]} 13. Be3 {[%clk 0:04:35.7]} 13... Rc8 {[%clk 0:04:47.2]} 14. Rad1
{[%clk 0:04:33.4]} 14... Qd5 {[%clk 0:04:37.7]} 15. Bc4 {[%clk 0:04:29.4]} 15...
Qc6 {[%clk 0:04:33.1]} 16. Bb5 {[%clk 0:04:27.4]} 16... Qc7 {[%clk 0:04:26.3]}
17. Ne5 {[%clk 0:04:12.7]} 17... Nd5 {[%clk 0:04:18.3]} 18. Qg4 {[%clk
0:04:05.9]} 18... Nxe3 {[%clk 0:04:08.1]} 19. Rxe3 {[%clk 0:04:02.6]} 19... Bd6
{[%clk 0:04:02.3]} 20. f4 {[%clk 0:03:52.2]} 20... Bxe5 {[%clk 0:03:57.4]} 21.
fxe5 {[%clk 0:03:51]} 21... cxd4 {[%clk 0:03:55.3]} 22. Rg3 {[%clk 0:03:48]}
22... g6 {[%clk 0:03:52.2]} 23. Bd3 {[%clk 0:03:45.2]} 23... g5 {[%clk 0:03:31]}
24. cxd4 {[%clk 0:03:43.6]} 24... f5 {[%clk 0:03:21.1]} 25. exf6 {[%clk
0:03:41.7]} 25... Rxf6 {[%clk 0:03:20.3]} 26. h4 {[%clk 0:03:40.9]} 26... Qg7
{[%clk 0:03:17.1]} 27. hxg5 {[%clk 0:03:34.4]} 27... hxg5 {[%clk 0:03:17]} 28.
Be4 {[%clk 0:03:14.5]} 28... Bxe4 {[%clk 0:03:03.2]} 29. Qxe4 {[%clk 0:03:13.4]}
29... Rcf8 {[%clk 0:03:00.6]} 30. d5 {[%clk 0:03:10.9]} 30... e5 {[%clk
0:02:48.9]} 31. d6 {[%clk 0:03:08.8]} 31... Rd8 {[%clk 0:02:39.5]} 32. Qd5+
{[%clk 0:03:07.1]} 32... Kf8 {[%clk 0:02:27.4]} 33. Kh2 {[%clk 0:02:53.7]} 33...
Rfxd6 {[%clk 0:02:19.6]} 34. Qxd6+ {[%clk 0:02:51.6]} 34... Rxd6 {[%clk
0:02:19.5]} 35. Rxd6 {[%clk 0:02:50.7]} 35... e4 {[%clk 0:02:13.3]} 36. Rd5
{[%clk 0:02:46.1]} 36... Qxb2 {[%clk 0:02:05.1]} 37. Rdxg5 {[%clk 0:02:38.9]}
37... Qxa2 {[%clk 0:02:03.8]} 38. Rg7 {[%clk 0:02:25.2]} 38... e3 {[%clk
0:01:58.6]} 39. Rxe3 {[%clk 0:02:19.2]} 39... Kxg7 {[%clk 0:01:57.5]} 0-1

[Event "Live Chess"]
[Site "Chess.com"]
[Date "2024.06.02"]
[Round "-"]
[White "gmnorfolk"]
[Black "ACM42"]
[Result "1-0"]
[WhiteElo "2129"]
[BlackElo "2148"]
[TimeControl "300"]
[EndTime "8:41:23 PDT"]
[Termination "gmnorfolk won on time"]

1. e4 {[%clk 0:04:56.5]} 1... e6 {[%clk 0:04:58.9]} 2. d4 {[%clk 0:04:54.9]}
2... d5 {[%clk 0:04:58]} 3. Nd2 {[%clk 0:04:54.3]} 3... Nf6 {[%clk 0:04:57]} 4.
e5 {[%clk 0:04:53]} 4... Nfd7 {[%clk 0:04:56.5]} 5. Bd3 {[%clk 0:04:52.1]} 5...
c5 {[%clk 0:04:56]} 6. c3 {[%clk 0:04:51.8]} 6... Nc6 {[%clk 0:04:55.5]} 7. Ne2
{[%clk 0:04:50.8]} 7... f6 {[%clk 0:04:55]} 8. Nf4 {[%clk 0:04:47.4]} 8... cxd4
{[%clk 0:04:53.2]} 9. cxd4 {[%clk 0:04:32.3]} 9... Nxd4 {[%clk 0:04:49.8]} 10.
Qh5+ {[%clk 0:04:21.4]} 10... Ke7 {[%clk 0:04:48.4]} 11. exf6+ {[%clk
0:04:19.2]} 11... Nxf6 {[%clk 0:04:45.9]} 12. Ng6+ {[%clk 0:04:17.9]} 12... hxg6
{[%clk 0:03:44.1]} 13. Qxh8 {[%clk 0:04:17.8]} 13... Kf7 {[%clk 0:03:43.3]} 14.
Qh4 {[%clk 0:04:15.1]} 14... e5 {[%clk 0:03:38.7]} 15. O-O {[%clk 0:04:11.4]}
15... Bd6 {[%clk 0:03:10.5]} 16. Nf3 {[%clk 0:04:08.4]} 16... Nxf3+ {[%clk
0:03:05.2]} 17. gxf3 {[%clk 0:04:05.8]} 17... Bf5 {[%clk 0:02:47.3]} 18. Bxf5
{[%clk 0:04:00.7]} 18... gxf5 {[%clk 0:02:47.2]} 19. Qg5 {[%clk 0:04:00.1]}
19... f4 {[%clk 0:02:12.9]} 20. Kh1 {[%clk 0:03:54.1]} 20... Qd7 {[%clk
0:01:46.8]} 21. Rg1 {[%clk 0:03:51.4]} 21... Rg8 {[%clk 0:01:45.9]} 22. Qg6+
{[%clk 0:03:47.7]} 22... Kf8 {[%clk 0:01:40.8]} 23. Bd2 {[%clk 0:03:43.6]} 23...
Qh3 {[%clk 0:01:37.9]} 24. Qg2 {[%clk 0:03:39.9]} 24... Qxg2+ {[%clk 0:01:09.9]}
25. Rxg2 {[%clk 0:03:37.2]} 25... Kf7 {[%clk 0:01:05.7]} 26. Rc1 {[%clk
0:03:34]} 26... Rd8 {[%clk 0:00:52.5]} 27. Rcg1 {[%clk 0:03:31.3]} 27... Rg8
{[%clk 0:00:48.5]} 28. Rg6 {[%clk 0:03:26.6]} 28... Bc5 {[%clk 0:00:41.4]} 29.
R1g2 {[%clk 0:03:19.1]} 29... b6 {[%clk 0:00:38.5]} 30. b4 {[%clk 0:03:14.8]}
30... Bd6 {[%clk 0:00:23.8]} 31. Rg1 {[%clk 0:03:02.9]} 31... e4 {[%clk
0:00:21.8]} 32. Bc3 {[%clk 0:02:54]} 32... Be7 {[%clk 0:00:18.6]} 33. R6g5
{[%clk 0:02:42.7]} 33... exf3 {[%clk 0:00:16.5]} 34. Bxf6 {[%clk 0:02:39.4]}
34... Bxf6 {[%clk 0:00:15.7]} 35. Rxd5 {[%clk 0:02:38.4]} 35... Rc8 {[%clk
0:00:14.4]} 36. Rd3 {[%clk 0:02:35.1]} 36... g5 {[%clk 0:00:12.7]} 37. Rxf3
{[%clk 0:02:33.4]} 37... Rc4 {[%clk 0:00:12]} 38. Rb1 {[%clk 0:02:29.7]} 38...
Rc2 {[%clk 0:00:10.8]} 39. h4 {[%clk 0:02:26.5]} 39... Rxa2 {[%clk 0:00:08.6]}
40. hxg5 {[%clk 0:02:23.8]} 40... Bxg5 {[%clk 0:00:08.5]} 41. Rg1 {[%clk
0:02:22.6]} 41... Kf6 {[%clk 0:00:07.9]} 42. Rc1 {[%clk 0:02:17.9]} 42... a5
{[%clk 0:00:06.8]} 43. Rc6+ {[%clk 0:02:16.3]} 43... Kf5 {[%clk 0:00:06.3]} 44.
bxa5 {[%clk 0:02:10.8]} 44... bxa5 {[%clk 0:00:05]} 45. Rc5+ {[%clk 0:02:08.4]}
45... Kg4 {[%clk 0:00:04.3]} 46. Kg2 {[%clk 0:02:07.3]} 46... Ra1 {[%clk
0:00:04.2]} 47. Rd3 {[%clk 0:01:50.4]} 47... a4 {[%clk 0:00:02.3]} 48. f3+
{[%clk 0:01:41.6]} 48... Kh4 {[%clk 0:00:01.4]} 49. Rd2 {[%clk 0:01:35.8]} 49...
Bf6 {[%clk 0:00:00.2]} 50. Rf5 {[%clk 0:01:14.9]} 1-0